bitfinex-derivatives/quotes_ETHF0:USTF0_20241023
["timestamp","ask_amount","ask_price","bid_price","bid_amount"]
[1729684632904,2.58495,2581.3,2581.2,43.42516703]
[1729684633108,2.58495,2581.3,2581.2,42.40870478]
[1729684633312,2.58495,2581.3,2581.2,40.8]
[1729684636310,6.45935,2581.3,2581.2,40.8]
[1729684637519,0.38768,2581.1,2581.0,1.40417584]
[1729684637716,1.78768,2581.1,2581.0,1.40417584]
[1729684638010,1.78768,2581.1,2581.0,43.81185909]
[1729684638419,1.78768,2581.1,2581.0,42.20417584]
[1729684638813,1.78768,2581.1,2581.0,41.81648584]
[1729684641816,1.78768,2581.1,2581.0,43.21648584]
[1729684642018,1.78768,2581.1,2581.0,43.60417584]
[1729684642716,0.38768,2581.2,2581.1,0.38767]
[1729684643017,0.38768,2581.2,2581.1,2.80289478]
[1729684643220,0.38768,2581.2,2581.1,4.40968156]
[1729684643417,0.38768,2581.2,2581.1,2.80289478]
[1729684643816,0.38768,2581.2,2581.1,4.40964694]
[1729684644220,0.79776,2581.3,2581.2,0.38766]
[1729684644420,0.38766,2581.3,2581.2,2.80281995]
[1729684644720,0.38766,2581.3,2581.2,4.40963378]
[1729684644910,0.38764,2581.4,2581.3,0.38763]
[1729684645112,0.38764,2581.4,2581.3,5.72318416]
[1729684647228,0.38764,2581.4,2581.3,8.93098416]
[1729684648024,0.38764,2581.4,2581.3,5.72318416]
[1729684648220,0.38764,2581.4,2581.3,8.93098416]
[1729684649224,0.38764,2581.4,2581.3,5.72318416]
[1729684652829,0.38764,2581.4,2581.3,5.72421867]
[1729684653430,1.78764,2581.4,2581.3,5.72421867]
[1729684653635,2.18784,2581.4,2581.3,5.72421867]
[1729684654425,1.78764,2581.4,2581.3,5.72421867]
[1729684654836,1.78764,2581.4,2581.3,5.72461294]
[1729684656434,1.78764,2581.4,2581.3,6.13451294]
[1729684657736,1.78764,2581.4,2581.3,6.13453343]
[1729684658634,1.78764,2581.4,2581.3,4.6118931]
[1729684659531,1.78764,2581.4,2581.3,5.74844369]
[1729684660231,1.78764,2581.4,2581.3,6.13609369]
[1729684660437,1.78764,2581.4,2581.3,4.34844369]
[1729684660730,1.78764,2581.4,2581.3,1.01617945]
[1729684661334,1.78764,2581.4,2581.3,2.62457827]
[1729684661730,5.2736,2581.4,2581.2,1.01617945]
[1729684661931,0.38766,2581.2,2581.1,2.32958059]
[1729684662135,1.78766,2581.2,2581.1,3.43021274]
[1729684664942,5.66206,2581.2,2581.1,2.62481274]
[1729684665138,5.2744,2581.2,2581.1,1.01620916]
[1729684665344,0.38768,2581.1,2581.0,41.81620916]
[1729684665643,5.66208,2581.1,2581.0,40.8]
[1729684666343,0.38769,2581.0,2580.9,1.01620916]
[1729684666645,2.21359,2581.0,2580.9,1.40391916]
[1729684666847,2.21359,2581.0,2580.9,42.20391916]
[1729684667538,2.21359,2581.0,2580.9,41.81620916]
[1729684668534,2.21359,2581.0,2580.9,40.8]
[1729684669144,2.21359,2581.0,2580.9,41.18771]
[1729684669447,2.21359,2581.0,2580.9,40.8]
[1729684672048,2.21359,2581.0,2580.9,40.8]
[1729684674851,0.38771,2580.9,2580.8,1.01620916]
[1729684675149,1.78771,2580.9,2580.8,4.41129329]
[1729684675349,1.78771,2580.9,2580.8,45.21129329]
[1729684675547,0.38771,2580.9,2580.8,45.21129329]
[1729684675746,0.8098,2581.3,2580.8,43.80736413]
[1729684676050,0.38769,2581.1,2581.0,1.91090953]
[1729684676250,0.38769,2581.1,2581.0,3.51827366]
[1729684676554,0.38769,2581.1,2581.0,2.6229158]
[1729684676742,0.38769,2581.1,2581.0,1.01555167]
[1729684676944,0.38769,2581.0,2580.9,2.63576167]
[1729684677146,1.78769,2581.0,2580.9,5.64316054]
[1729684677345,1.78769,2581.0,2580.9,5.25545054]
[1729684678851,1.78769,2581.0,2580.9,4.23989887]
[1729684679252,1.78769,2581.0,2580.9,5.7631484]
[1729684680156,1.78769,2581.0,2580.9,1.01555071]
[1729684680354,1.78769,2581.0,2580.9,2.62294888]
[1729684680553,1.78769,2581.0,2580.9,1.01555071]
[1729684681055,1.78769,2581.0,2580.8,41.81560984]
[1729684681056,0.38771,2580.9,2580.8,41.81560984]
[1729684681252,2.19371,2580.9,2580.8,43.42297132]
[1729684682554,2.19371,2580.9,2580.8,41.81560984]
[1729684682858,2.19371,2580.9,2580.8,43.4228598]
[1729684683256,0.79371,2580.9,2580.8,43.21560984]
[1729684683457,0.38771,2580.9,2580.8,45.71816997]
[1729684683661,0.38771,2580.9,2580.8,43.93044997]
[1729684683849,1.78771,2580.9,2580.8,43.42271538]
[1729684684153,1.78771,2580.9,2580.8,43.93044997]
[1729684685060,1.78771,2580.9,2580.8,44.31816997]
[1729684685260,1.78771,2580.9,2580.8,43.93044997]
[1729684685858,1.78771,2580.9,2580.8,42.40720044]
[1729684686159,1.78771,2580.9,2580.8,41.81545615]
[1729684687260,1.78771,2580.9,2580.8,42.40708007]
[1729684687564,1.78771,2580.9,2580.8,41.81540233]
[1729684688861,1.78771,2580.9,2580.8,40.8]
[1729684693066,0.38771,2580.9,2580.8,42.58772]
[1729684693257,0.38771,2580.9,2580.8,45.21005561]
[1729684693459,0.38771,2580.9,2580.8,45.71790281]
[1729684693660,0.38771,2580.9,2580.8,44.19465328]
[1729684693859,0.38771,2580.9,2580.8,44.1947096]
[1729684694467,0.38771,2580.9,2580.8,45.71790897]
[1729684694865,0.38771,2580.9,2580.8,44.1947096]
[1729684696267,0.38771,2580.9,2580.8,45.71790897]
[1729684698264,1.78771,2580.9,2580.8,44.31790897]
[1729684698758,1.78771,2580.9,2580.8,44.31863654]
[1729684700065,1.4,2581.0,2580.8,45.33091654]
[1729684700267,0.96913,2581.3,2580.9,4.53108147]
[1729684700567,0.38768,2581.2,2581.1,1.91086937]
[1729684700776,0.38768,2581.2,2581.1,1.60802591]
[1729684700966,0.38768,2581.2,2581.1,3.1318708]
[1729684701863,1.78768,2581.2,2581.1,3.1318708]
[1729684702473,1.78768,2581.2,2581.1,3.5195508]
[1729684702866,1.78768,2581.2,2581.1,3.1318708]
[1729684703273,1.78768,2581.2,2581.1,4.5318708]
[1729684703469,0.38768,2581.2,2581.1,4.92005381]
[1729684703671,0.38768,2581.2,2581.1,3.39621601]
[1729684704368,0.38768,2581.2,2581.1,5.42970031]
[1729684705376,1.78768,2581.2,2581.1,5.42970031]
[1729684708174,1.78768,2581.2,2581.1,3.8211643]
[1729684708377,1.78768,2581.2,2581.1,5.43014933]
[1729684709580,1.78768,2581.2,2581.1,5.04246933]
[1729684709787,1.78768,2581.2,2581.1,5.43014933]
[1729684710373,1.78768,2581.2,2581.1,3.39666503]
[1729684710685,1.78768,2581.2,2581.1,3.00898503]
[1729684711181,1.78768,2581.2,2581.1,3.39666503]
[1729684712975,1.78768,2581.2,2581.1,3.39621762]
[1729684714881,1.78768,2581.2,2581.1,1.99621762]
[1729684715182,1.78768,2581.2,2581.1,3.39610334]
[1729684716376,1.78768,2581.2,2581.1,3.81060334]
[1729684717988,1.78768,2581.2,2581.1,3.81048304]
[1729684722588,1.78768,2581.2,2581.1,5.45628734]
[1729684722884,1.78768,2581.2,2581.1,3.42272593]
[1729684723591,1.78768,2581.2,2581.1,3.81040593]
[1729684726490,0.38768,2581.2,2581.1,3.81040593]
[1729684726789,1.38318,2581.7,2581.1,9.71829023]
[1729684727092,1.22539,2581.7,2581.6,1.01598368]
[1729684727587,0.3876,2581.6,2581.5,1.01598368]
[1729684727785,4.7114,2581.7,2581.4,1.01598368]
[1729684727786,0.38762,2581.5,2581.4,1.01598368]
[1729684727979,1.78762,2581.5,2581.4,1.01598368]
[1729684728992,1.78762,2581.5,2581.4,2.62380204]
[1729684729183,1.78762,2581.5,2581.4,1.01598368]
[1729684730298,0.38762,2581.5,2581.4,4.41135247]
[1729684730591,0.38762,2581.5,2581.4,4.63036879]
[1729684730789,0.38762,2581.5,2581.4,6.1539287]
[1729684731292,9.8814,2581.5,2580.8,3.05022645]
[1729684731498,9.8814,2581.5,2580.6,1.01608534]
[1729684731499,0.38774,2580.7,2580.6,1.01608534]
[1729684731694,6.0078,2580.9,2580.4,3.6793286]
[1729684731695,0.38777,2580.5,2580.4,3.6793286]
[1729684731994,0.38784,2580.0,2579.9,1.01621564]
[1729684732183,0.38783,2580.1,2579.5,1.8122]
[1729684732487,3.2078,2580.2,2579.8,1.4]
[1729684732693,1.78786,2579.9,2579.5,0.4122]
[1729684732881,3.2078,2580.2,2579.8,1.4]
[1729684733087,0.38784,2580.1,2579.9,1.7962]
[1729684733283,3.2078,2580.6,2580.0,1.4]
[1729684733485,0.3878,2580.3,2580.2,1.4]
[1729684733684,1.4,2580.3,2580.1,1.7921]
[1729684733884,1.78781,2580.3,2580.1,1.7921]
[1729684734094,1.4,2580.2,2580.1,1.7921]
[1729684734287,1.78781,2580.2,2580.1,0.3921]
[1729684734481,1.78781,2580.2,2580.1,1.7921]
[1729684734482,1.4,2580.2,2580.1,1.7921]
[1729684735393,1.78781,2580.3,2580.1,1.7921]
[1729684735588,4.6078,2580.6,2580.2,1.4]
[1729684735791,0.38778,2580.5,2580.4,1.4]
[1729684736189,0.38779,2580.4,2580.3,1.4]
[1729684736383,0.38775,2580.7,2580.3,1.4]
[1729684736681,4.15625803,2581.3,2580.6,4.6078]
[1729684736889,4.15625803,2581.3,2580.7,1.6875]
[1729684736890,0.38772,2580.9,2580.7,1.6875]
[1729684737289,0.06410422,2581.4,2580.7,1.6875]
[1729684737486,0.38769,2581.0,2580.9,3.2078]
[1729684737689,0.38769,2581.1,2580.9,3.2078]
[1729684738193,0.38766,2581.3,2580.9,3.2078]
[1729684738395,0.06410422,2581.4,2581.0,40.8]
[1729684738889,0.38767,2581.2,2581.0,40.8]
[1729684740397,0.06410422,2581.4,2581.1,6.9044]
[1729684740697,0.38772,2580.8,2580.7,0.38716635]
[1729684740886,0.38772,2580.8,2579.8,0.60336954]
[1729684740887,3.2078,2580.8,2579.8,0.4238]
[1729684741195,0.38783,2580.1,2579.8,0.4238]
[1729684741388,3.066,2580.7,2580.0,3.03]
[1729684741389,0.38778,2580.4,2580.0,3.03]
[1729684741590,3.2078,2581.3,2580.3,3.2078]
[1729684741789,3.2078,2581.3,2580.7,3.03]
[1729684741790,0.38772,2580.8,2580.7,3.03]
[1729684741999,0.38772,2580.8,2580.7,0.4016]
[1729684742693,0.38772,2580.8,2580.7,3.4316]
[1729684742894,0.38772,2580.8,2580.7,0.4016]
[1729684743596,0.38772,2580.8,2580.7,41.2016]
[1729684747202,3.2078,2581.3,2580.7,45.0768]
[1729684747400,3.2078,2581.3,2580.7,41.2016]
[1729684747598,0.38772,2580.8,2580.7,41.2016]
[1729684748003,0.38772,2580.8,2580.7,45.0768]
[1729684748501,0.38772,2580.8,2580.7,41.2016]
[1729684750193,0.38772,2580.8,2580.7,41.6288]
[1729684771904,0.38772,2580.8,2580.7,42.01654]
[1729684772116,3.2078,2581.1,2580.7,45.504]
[1729684772423,0.38771,2581.0,2580.9,3.5955]
[1729684773414,0.38771,2581.0,2580.9,6.6255]
[1729684773616,0.96913,2581.3,2580.9,6.2378]
[1729684773809,0.38765,2581.3,2581.2,3.03]
[1729684774312,3.2078,2581.5,2581.2,1.4]
[1729684774519,3.2078,2581.5,2581.4,1.4]
[1729684774823,3.59542,2581.5,2581.4,1.4]
[1729684776421,3.59542,2581.5,2581.4,3.03]
[1729684777615,3.59542,2581.5,2581.4,3.41763]
[1729684777916,0.38762,2581.5,2581.4,3.41763]
[1729684778313,0.96884,2582.1,2581.4,7.87269]
[1729684778515,0.38753,2582.1,2582.0,3.03]
[1729684778721,0.38753,2582.1,2582.0,3.41754]
[1729684778925,0.38753,2582.1,2582.0,43.83]
[1729684779310,0.38753,2582.1,2582.0,44.2366]
[1729684779625,0.38752,2582.2,2582.1,0.38752]
[1729684779918,3.2078,2582.3,2582.1,3.03]
[1729684780113,1.3545,2582.7,2582.2,0.38751]
[1729684780316,0.38747,2582.5,2582.4,3.03]
[1729684781122,0.38747,2582.5,2582.4,3.41748]
[1729684781323,0.38747,2582.5,2582.4,3.03]
[1729684782115,0.38747,2582.5,2582.4,3.41748]
[1729684782514,0.38747,2582.5,2582.4,3.03]
[1729684782918,0.38747,2582.5,2582.4,3.41748]
[1729684783123,0.96855,2582.9,2582.4,3.03]
[1729684783313,0.38747,2582.5,2582.4,3.41748]
[1729684784324,0.38747,2582.5,2582.4,3.03]
[1729684786226,0.38747,2582.5,2581.7,2.99724976]
[1729684786227,3.872,2582.5,2581.7,8.26607976]
[1729684786524,3.872,2582.5,2581.8,0.4131]
[1729684786525,0.38756,2581.9,2581.8,0.4131]
[1729684787025,0.96877,2582.3,2581.8,0.4131]
[1729684787026,0.96881,2582.2,2581.8,0.4131]
[1729684787224,0.38756,2581.9,2581.8,0.4131]
[1729684787825,0.38756,2581.9,2581.8,3.4431]
[1729684788022,0.38756,2581.9,2581.8,3.83067]
[1729684788219,0.38756,2581.9,2581.8,3.4431]
[1729684788415,0.38756,2581.9,2581.8,3.83067]
[1729684788724,0.38756,2581.9,2581.8,3.4431]
[1729684789114,0.38756,2581.9,2581.8,3.83067]
[1729684789324,0.38756,2581.9,2581.8,3.4431]
[1729684789518,0.38756,2581.9,2581.8,3.83067]
[1729684789716,0.38756,2581.9,2581.8,4.23027]
[1729684789919,0.38756,2581.9,2581.8,3.8427]
[1729684790320,0.38756,2581.9,2581.8,4.23027]
[1729684791328,0.38755,2582.0,2581.8,4.23027]
[1729684791522,0.38756,2581.9,2581.8,4.23027]
[1729684791829,0.38756,2581.9,2581.8,3.8427]
[1729684792025,0.38756,2581.9,2581.8,4.23027]
[1729684793118,0.38755,2582.0,2581.9,0.38755]
[1729684793318,0.38756,2581.9,2581.8,4.23027]
[1729684794122,4.17657,2582.3,2581.8,3.8427]
[1729684794327,0.96879,2582.2,2581.8,3.8427]
[1729684794523,4.17657,2582.3,2581.8,3.8427]
[1729684794730,0.38756,2581.9,2581.8,4.23026]
[1729684795434,4.17657,2582.3,2581.9,0.38756]
[1729684795435,0.38756,2582.0,2581.9,0.38756]
[1729684796132,0.38756,2581.9,2581.8,4.23026]
[1729684798133,4.17657,2582.3,2581.8,3.8427]
[1729684798325,0.3882,2582.4,2582.1,3.41752]
[1729684798326,0.38751,2582.2,2582.1,3.41752]
[1729684799539,0.38751,2582.3,2582.2,0.3875]
[1729684799736,0.38751,2582.3,2582.2,0.8134]
[1729684799937,1.35724,2582.6,2582.2,0.4259]
[1729684800233,3.6328,2582.7,2582.2,0.4259]
[1729684800234,0.38749,2582.4,2582.3,3.84428]
[1729684800443,0.38748,2582.5,2582.4,0.38747]
[1729684802553,0.38748,2582.5,2582.4,0.79597]
[1729684804649,3.2078,2582.7,2582.2,0.4259]
[1729684804840,0.3875,2582.3,2582.2,0.4259]
[1729684805944,0.38753,2582.1,2582.0,0.8078]
[1729684806152,0.38756,2581.9,2581.8,0.4232]
[1729684807151,0.38756,2581.9,2581.7,41.2176]
[1729684807152,0.38757,2581.8,2581.7,41.2176]
[1729684807559,4.26117,2581.8,2581.7,41.2176]
[1729684807844,0.38757,2581.8,2581.7,41.2176]
[1729684808048,4.26117,2581.8,2581.7,41.60519]
[1729684808258,0.38755,2582.0,2581.9,0.38754]
[1729684808457,0.38754,2582.1,2582.0,0.38753]
[1729684808658,0.38754,2582.1,2582.0,0.80493]
[1729684812358,0.38754,2582.1,2582.0,0.4174]
[1729684812860,3.8728,2582.1,2581.8,0.78697]
[1729684813153,4.17661,2582.2,2581.8,0.78697]
[1729684813543,0.38756,2581.9,2581.8,0.3994]
[1729684814158,0.38756,2581.9,2581.7,41.2176]
[1729684814159,0.38757,2581.8,2581.7,41.2176]
[1729684815151,4.26117,2581.8,2581.7,40.8]
[1729684815355,0.38765,2581.3,2581.2,0.8034]
[1729684815548,0.38765,2581.4,2581.3,0.38764]
[1729684815752,0.38765,2581.4,2581.3,44.21764]
[1729684815954,0.38765,2581.4,2581.3,43.83]
[1729684817356,0.38765,2581.4,2581.3,40.8]
[1729684819049,4.26125,2581.4,2581.3,40.8]
[1729684819253,4.26125,2581.4,2580.9,4.4419]
[1729684819254,3.8736,2581.4,2580.9,5.7559]
[1729684819449,0.38769,2581.0,2580.9,4.82959]
[1729684819764,0.38769,2581.0,2580.9,45.62959]
[1729684821056,0.38769,2581.1,2581.0,0.38769]
[1729684821461,0.38769,2581.0,2580.9,45.6296]
[1729684823150,0.38769,2581.0,2580.9,45.2419]
[1729684823458,0.38769,2581.0,2580.9,42.42181]
[1729684823853,0.38769,2581.0,2580.9,42.0341]
[1729684824555,0.38769,2581.0,2580.9,42.42181]
[1729684825655,0.38769,2581.0,2580.9,42.0341]
[1729684826560,0.38769,2581.1,2581.0,0.38768]
[1729684827852,0.38768,2581.2,2581.1,0.38766]
[1729684829562,0.38769,2581.0,2580.9,45.62959]
[1729684829759,0.38769,2581.0,2580.9,43.66879]
[1729684829963,0.38769,2581.0,2580.9,47.54319]
[1729684830360,0.38769,2581.0,2580.9,43.66879]
[1729684831863,0.38769,2581.0,2580.9,42.42181]
[1729684833154,6.2378,2581.5,2580.9,45.0641]
[1729684833155,3.2078,2581.5,2580.9,45.0641]
[1729684833362,3.59543,2581.5,2581.4,3.03]
[1729684833666,0.38763,2581.4,2581.3,0.38764]
[1729684834059,0.38763,2581.4,2581.3,0.79434]
[1729684834561,0.38763,2581.4,2581.3,0.4067]
[1729684835067,0.38763,2581.4,2581.3,0.79435]
[1729684836356,0.38763,2581.4,2581.3,0.4067]
[1729684836761,0.38763,2581.4,2581.3,0.79435]
[1729684837172,0.38763,2581.4,2581.3,3.82435]
[1729684839468,0.38763,2581.4,2581.3,0.79435]
[1729684840367,0.38763,2581.4,2581.3,0.4067]
[1729684840770,0.38763,2581.4,2581.3,0.79435]
[1729684846069,4.17678,2581.7,2581.4,0.38761]
[1729684846070,0.38763,2581.5,2581.4,0.38761]
[1729684846463,0.38762,2581.6,2581.5,0.3876]
[1729684847864,0.38762,2581.5,2581.4,0.4014]
[1729684848375,4.26122,2581.5,2581.4,0.4014]
[1729684848674,0.38763,2581.4,2581.3,0.4067]
[1729684849267,1.39474,2581.6,2581.2,0.3895]
[1729684849470,0.38765,2581.3,2581.2,0.3895]
[1729684849773,0.38765,2581.3,2581.2,0.77716]
[1729684850367,0.38765,2581.3,2581.2,0.3895]
[1729684850767,0.38765,2581.3,2581.2,0.77716]
[1729684850967,0.38765,2581.3,2581.2,0.3895]
[1729684851970,0.38765,2581.3,2581.2,0.77716]
[1729684852572,0.38765,2581.3,2581.2,1.18536]
[1729684853069,0.38765,2581.3,2581.2,4.21536]
[1729684853466,0.96904,2581.6,2581.3,0.38763]
[1729684853467,0.38764,2581.4,2581.3,0.38763]
[1729684856574,0.38762,2581.6,2581.5,0.3876]
[1729684856773,0.3876,2581.7,2581.6,0.38759]
[1729684856977,0.38759,2581.8,2581.7,0.38757]
[1729684857176,0.38759,2581.8,2581.7,1.81452247]
[1729684859184,0.38759,2581.8,2581.7,3.34472101]
[1729684859480,0.38759,2581.8,2581.7,2.95715101]
[1729684859683,0.38759,2581.8,2581.7,1.42695247]
[1729684859978,0.38759,2581.8,2581.7,1.81454247]
[1729684860372,0.38759,2581.8,2581.7,2.95725425]
[1729684860977,0.38759,2581.8,2581.7,3.34484425]
[1729684861579,0.38759,2581.8,2581.7,1.81454247]
[1729684862881,0.38756,2582.0,2581.9,0.38754]
[1729684863283,0.38752,2582.2,2582.1,0.38751]
[1729684863483,0.38751,2582.3,2582.2,0.3875]
[1729684863796,0.38751,2582.3,2582.2,1.2079]
[1729684864088,0.38747,2582.5,2582.4,0.38747]
[1729684864309,0.3888,2583.0,2582.4,0.38747]
[1729684864310,0.96857,2582.8,2582.4,3.03]
[1729684864597,3.2078,2583.1,2582.6,3.03]
[1729684864786,0.38739,2583.0,2582.9,3.03]
[1729684864983,0.38742,2582.8,2582.7,3.8611]
[1729684865179,0.38742,2582.8,2582.7,0.8311]
[1729684865395,0.38742,2582.8,2582.7,1.9491]
[1729684865588,0.38742,2582.8,2582.7,0.4222]
[1729684866087,1.39404,2582.9,2582.4,3.6167]
[1729684866290,1.39404,2582.9,2582.3,1.118]
[1729684866291,0.38748,2582.4,2582.3,1.118]
[1729684866483,0.38748,2582.4,2582.2,40.8]
[1729684866484,0.3875,2582.3,2582.2,40.8]
[1729684867990,4.21319,2582.5,2582.1,0.79633]
[1729684868191,0.38751,2582.2,2582.1,0.79633]
[1729684868388,0.96865,2582.6,2582.1,3.4388]
[1729684868598,0.38751,2582.4,2582.3,0.38749]
[1729684869099,4.17639,2582.8,2582.3,3.03]
[1729684869286,0.38745,2582.7,2582.6,0.38744]
[1729684869484,0.38745,2582.7,2582.6,0.79424]
[1729684870192,0.38745,2582.7,2582.6,0.4068]
[1729684871695,0.38747,2582.5,2582.4,0.3995]
[1729684872205,0.38747,2582.5,2582.4,1.90498]
[1729684872496,0.38747,2582.5,2582.4,5.77698]
[1729684873290,1.39377,2582.8,2582.4,5.3895]
[1729684873499,0.9685,2583.0,2582.4,1.5175]
[1729684873695,0.9685,2583.0,2582.5,3.03]
[1729684873895,0.38742,2582.9,2582.8,0.3874]
[1729684874197,0.38742,2582.9,2582.8,4.2049]
[1729684874794,0.38739,2583.0,2582.9,0.38739]
[1729684875194,0.38739,2583.0,2582.8,3.8175]
[1729684875195,0.38741,2582.9,2582.8,4.20491]
[1729684877301,0.3874,2583.0,2582.9,0.38739]
[1729684878301,0.38741,2582.9,2582.8,4.20491]
[1729684878695,3.2078,2583.1,2582.9,0.3874]
[1729684878696,0.3874,2583.0,2582.9,0.3874]
[1729684879002,3.2078,2583.1,2583.0,0.38739]
[1729684879003,3.59519,2583.1,2583.0,0.38739]
[1729684879605,3.59518,2583.1,2583.0,3.41739]
[1729684880199,3.59518,2583.1,2583.0,4.53439]
[1729684880704,3.2078,2583.1,2583.0,4.53439]
[1729684880895,0.38738,2583.2,2583.1,0.38737]
[1729684881101,0.38738,2583.2,2583.1,0.78917]
[1729684882004,0.38736,2583.3,2583.2,0.38735]
[1729684882206,0.38736,2583.3,2583.2,0.78585]
[1729684882602,0.38736,2583.3,2583.2,0.3985]
[1729684882907,0.38736,2583.3,2583.2,0.78586]
[1729684883400,3.59514,2583.4,2583.3,0.38735]
[1729684883602,3.59514,2583.4,2583.3,0.81575]
[1729684883902,3.59514,2583.4,2583.3,1.93275]
[1729684884105,3.59514,2583.4,2583.3,1.5454]
[1729684884295,3.59514,2583.4,2583.3,1.93275]
[1729684884502,3.59514,2583.4,2583.3,42.73275]
[1729684884707,0.38734,2583.4,2583.3,42.73275]
[1729684885809,0.38734,2583.4,2583.3,1.5454]
[1729684886018,0.38734,2583.4,2583.3,0.4284]
[1729684887098,0.38733,2583.5,2583.4,0.38732]
[1729684889314,0.38733,2583.4,2583.3,0.81573]
[1729684890509,0.38733,2583.4,2583.3,1.4834]
[1729684892303,0.38733,2583.5,2583.3,4.5134]
[1729684892499,0.38733,2583.5,2583.4,0.38732]
[1729684892709,0.38731,2583.6,2583.5,0.3873]
[1729684892915,0.38731,2583.6,2583.4,3.03]
[1729684892916,0.38732,2583.5,2583.4,3.41732]
[1729684893209,0.38733,2583.4,2583.3,0.4284]
[1729684893406,3.2078,2583.4,2582.9,1.055]
[1729684893602,0.38739,2583.0,2582.9,0.4044]
[1729684893802,3.99842,2583.2,2582.2,2.01756232]
[1729684893803,4.17627,2583.1,2582.5,44.0078]
[1729684894102,0.38745,2582.6,2582.5,3.2078]
[1729684895204,3.872,2582.6,2582.3,40.8]
[1729684895407,0.3875,2582.3,2582.2,3.2078]
[1729684896505,0.3875,2582.3,2582.2,3.59531]
[1729684896710,0.3875,2582.3,2582.2,4.01331]
[1729684897405,0.3875,2582.4,2582.3,0.38749]
[1729684897606,0.3875,2582.3,2582.2,7.43261]
[1729684897812,0.3875,2582.3,2582.2,7.0451]
[1729684898013,0.3875,2582.3,2582.2,8.48761]
[1729684898607,4.17639,2582.8,2582.2,8.1001]
[1729684898912,0.38749,2582.4,2582.3,0.38749]
[1729684899112,4.17639,2582.8,2582.2,8.1001]
[1729684899411,0.38748,2582.5,2582.4,0.38748]
[1729684899812,0.38748,2582.5,2582.4,1.44348]
[1729684901104,0.38748,2582.5,2582.4,1.056]
[1729684901511,0.96863,2582.7,2582.3,1.056]
[1729684901712,0.3875,2582.3,2582.2,4.4026]
[1729684901908,0.3875,2582.3,2582.2,8.4886]
[1729684902506,0.3875,2582.3,2582.2,5.2808]
[1729684903719,0.3875,2582.3,2582.2,9.1536]
[1729684903914,0.38749,2582.4,2582.3,0.38749]
[1729684904216,0.38749,2582.4,2582.3,6.62529]
[1729684904412,0.3884,2582.9,2582.3,10.1106]
[1729684904715,0.9685,2583.0,2582.7,3.03]
[1729684904921,3.2078,2583.1,2582.7,0.38742]
[1729684905219,0.38741,2583.0,2582.9,0.38739]
[1729684905921,0.38739,2583.1,2583.0,0.38739]
[1729684906113,0.38737,2583.2,2583.1,0.38737]
[1729684906417,0.38738,2583.2,2583.1,3.41737]
[1729684907124,0.38738,2583.2,2583.1,43.83]
[1729684907719,0.38736,2583.2,2583.1,44.21737]
[1729684908524,0.38736,2583.2,2583.1,43.83]
[1729684908819,0.38736,2583.2,2583.1,41.855]
[1729684910320,0.38736,2583.2,2583.1,40.8]
[1729684911311,0.38736,2583.2,2583.1,43.83]
[1729684911822,0.38736,2583.3,2583.2,0.38736]
[1729684912015,0.38736,2583.2,2583.1,44.21737]
[1729684912211,0.38736,2583.2,2583.1,43.83]
[1729684912415,0.38736,2583.2,2583.1,40.8]
[1729684913215,0.38736,2583.2,2583.1,43.83]
[1729684913421,0.38736,2583.2,2583.1,44.21738]
[1729684914326,0.38736,2583.2,2583.1,43.83]
[1729684914712,0.38736,2583.2,2583.1,44.21738]
[1729684915018,0.38736,2583.2,2583.1,43.83]
[1729684916221,0.38736,2583.2,2583.1,40.8]
[1729684917727,0.38736,2583.2,2583.1,41.18738]
[1729684919926,0.38736,2583.2,2583.1,41.59438]
[1729684920125,0.38736,2583.2,2583.1,44.62438]
[1729684921922,3.5963,2583.9,2583.1,48.49558]
[1729684922126,0.38727,2583.8,2583.7,3.03]
[1729684922330,4.17599,2583.9,2583.6,0.3873]
[1729684922521,0.38727,2583.8,2583.7,0.4106]
[1729684923232,0.38727,2583.8,2583.7,0.79789]
[1729684923432,3.59507,2583.9,2583.8,0.38727]
[1729684923935,3.2078,2583.9,2583.8,0.38727]
[1729684924130,0.38726,2584.0,2583.9,0.38726]
[1729684924439,0.38723,2584.2,2584.1,0.38721]
[1729684924630,3.2078,2584.3,2584.2,0.38721]
[1729684924934,3.2078,2584.3,2584.2,1.22391]
[1729684925123,3.2078,2584.3,2584.2,1.62731]
[1729684925528,3.2078,2584.3,2584.2,42.0401]
[1729684925529,3.595,2584.3,2584.2,42.0401]
[1729684925825,3.595,2584.3,2584.2,40.8]
[1729684925826,7.4646,2584.3,2584.2,40.8]
[1729684926221,7.4646,2584.3,2583.9,0.993]
[1729684926222,0.38724,2584.0,2583.9,0.993]
[1729684926424,0.38724,2584.0,2583.9,1.38026]
[1729684926728,0.38724,2584.0,2583.9,41.793]
[1729684927129,3.2078,2584.3,2583.9,44.823]
[1729684927331,0.38722,2584.2,2584.1,3.41721]
[1729684927520,3.2078,2584.3,2584.2,0.38721]
[1729684927521,3.59501,2584.3,2584.2,0.38721]
[1729684927727,3.59501,2584.3,2584.2,0.79431]
[1729684927927,3.2078,2584.3,2584.2,1.21151]
[1729684928324,3.595,2584.3,2584.2,0.8243]
[1729684928927,0.3872,2584.3,2584.2,1.8173]
[1729684929230,0.3872,2584.3,2584.2,2.20451]
[1729684929429,0.3872,2584.3,2584.2,1.8173]
[1729684929635,0.3872,2584.3,2584.2,2.20451]
[1729684929837,0.3872,2584.3,2584.2,1.8173]
[1729684930435,0.38724,2584.0,2583.9,40.8]
[1729684930638,0.38724,2584.0,2583.9,0.4085]